Cogmind - Beta 14 @@@ ROGUE MODE // 2024.12.18 @ 20:30:16 Player: xack Result: Destroyed self with Rocket Launcher Performance ------------- Evolutions (0) 0 Regions Visited (4) 800 Robots Destroyed (23) 115 Value Destroyed (386) 386 Prototype IDs (28) 560 Alien Tech Used (0) 0 Bonus (325) 325 TOTAL SCORE: 2186 Bonus ------- Follower Combat Kills 25 Aligned with FarCom 300 Cogmind --------- Core Integrity 0/250 Matter 188/300 Energy 125/125 System Corruption 10% Temperature Warm (111) Movement Rolling (110) Ox2 Location -9/Mines Parts ------- > --- POWER (1) -------- Light Ion Engine > --- PROPULSION (2) --- Wheel Wheel > --- UTILITY (2) ------ High-capacity Storage Unit Reactive Plating > --- WEAPON (2) ------- Rocket Launcher > --- INVENTORY (20) --- Ion Engine Aluminum Leg Aluminum Leg Aluminum Leg Aluminum Leg Wheel Wheel Improved Heat Sink Improved Heat Sink Sensor Array Authchip [R/Combat] Latent Energy Streamer Improved Grenade Launcher Datajack EMP Trap EMP Trap EMP Trap EMP Trap Peak State ------------ > --- POWER ------------ Light Nuclear Core > --- PROPULSION ------- Wheel Compact Wheel > --- UTILITY ---------- High-capacity Storage Unit Improved Sensor Array > --- WEAPON ----------- Assault Rifle Light Assault Rifle > --- INVENTORY -------- Ion Engine Ion Engine Light Ion Engine Aluminum Leg Aluminum Leg Aluminum Leg Aluminum Leg Wheel Improved Heat Sink Improved Heat Sink Sensor Array Authchip [R/Combat] Datajack [Rating: 13] Favorites ----------- Power Light Ion Engine Engine Light Ion Engine Power Core Light Nuclear Core Propulsion Wheel Leg Aluminum Leg Wheel Wheel Utility High-capacity Storage Unit Device Sensor Array Storage High-capacity Storage Unit Protection Light Armor Plating Weapon Assault Rifle Energy Gun EM Pulse Gun Ballistic Gun Assault Rifle Launcher Grenade Launcher Special Melee Weapon Datajack Build | -11 -10 -10 -10 -9 ------- Run | Yrd Mat Min Exi Min Slots Evolved . | . . . . . Power . | . . . . . Propulsion . | . . . . . Utility . | . . . . . Weapon . | . . . . . Parts Attached 34 | 6 12 11 1 4 Power 5 | 1 2 2 . . Engine 4 | 1 1 2 . . Core 1 | . 1 . . . Reactor . | . . . . . Propulsion 8 | 2 2 4 . . Treads . | . . . . . Leg 4 | 2 . 2 . . Wheel 4 | . 2 2 . . Hover . | . . . . . Flight . | . . . . . Utility 8 | 1 3 3 . 1 Device 3 | . . 3 . . Storage 3 | 1 2 . . . Processor . | . . . . . Hackware . | . . . . . Protection 2 | . 1 . . 1 Artifact . | . . . . . Weapon 13 | 2 5 2 1 3 Energy Gun 5 | 1 2 1 . 1 Energy Cannon . | . . . . . Ballistic Gun 4 | 1 2 1 . . Ballistic Cannon . | . . . . . Launcher 3 | . . . 1 2 Special Weapon . | . . . . . Impact Weapon . | . . . . . Slashing Weapon . | . . . . . Piercing Weapon . | . . . . . Special Melee Weapon 1 | . 1 . . . Unidentified Prototypes . | . . . . . Corrupted Parts 1 | . . . 1 . System Corruption 10 | . . . 10 . Parts Lost 11 | . . 9 . 2 Power 2 | . . 2 . . Propulsion 2 | . . 2 . . Utility 2 | . . 2 . . Weapon 5 | . . 3 . 2 Highest Loss Streak 4 | . . 4 . 1 To Critical Strikes . | . . . . . Average Slot Usage (%) 91 | . 96 88 85 85 Engine 10 | . 10 5 14 14 Core 3 | . 3 7 . . Leg 9 | . 19 2 . . Wheel 17 | . 8 23 28 28 Device 4 | . . 10 14 2 Storage 14 | . 14 14 14 14 Protection 6 | . 10 . . 11 Energy Gun 11 | . 14 6 14 11 Ballistic Gun 10 | . 14 16 . . Peak Build Rating 13 | 6 10 13 13 13 Average Rating 9 | 3 7 10 9 11 On Entrance 7 | . 6 10 9 10 Naked Turns . | . . . . . Heaviest Build 59 | 10 52 52 47 59 Greatest Support 26 | 20 26 26 20 20 Greatest Overweight (x) 4 | . 1 4 2 2 Average Overweight (x) 1 | . . 1 2 2 Largest Inventory Capacity 20 | 8 20 20 20 20 Average Capacity 15 | 6 12 20 20 20 Most Carried 20 | 5 12 17 18 20 Average Carried 12 | 3 8 13 17 18 Final Capacity 20 | 8 20 20 20 20 Final Carried 18 | 4 12 17 18 18 Class Distribution -------------------- 72% | Mutant 27% | Scavenger-Mutant Dominant Class ---------------- Mutant | -10/Materials Mutant | -10/Mines Scavenger-Mutant | -10/Exiles Scavenger-Mutant | -9/Mines Resources | -11 -10 -10 -10 -9 ----------- Run | Yrd Mat Min Exi Min Matter Collected 664 | 192 247 155 . 70 Remotely . | . . . . . Salvage Created 576 | . 365 152 . 59 Parts 49 | . 28 12 . 9 Haulers Intercepted 1 | . 1 . . . Recyclers Shooed . | . . . . . Parts Field Recycled . | . . . . . Retrieved Matter . | . . . . . Parts Self-Destructed . | . . . . . Prevented . | . . . . . Kills | -11 -10 -10 -10 -9 ------- Run | Yrd Mat Min Exi Min Combat Hostiles Destroyed 17 | . 8 5 . 4 Guns 12 | . 8 3 . 1 AOE 5 | . . 2 . 3 Classes Destroyed 8 | . 5 1 . 2 Worker 1 | . 1 . . . Builder 2 | . . 2 . . Tunneler 3 | . . . . 3 Hauler 1 | . 1 . . . Watcher 2 | . 2 . . . Swarmer 8 | . 5 3 . . Grunt 6 | . 3 2 . 1 Assembled 3 | . . . . 3 Best Kill Streak 4 | . 3 3 . 4 Combat Bots Only 3 | . 3 3 . 3 Max Kills in Single Turn 2 | . 2 2 . 2 Gunslinging 1 | . 1 . . . Exploded 2 | . . 2 . 2 Melee . | . . . . . Uniques/NPCs Destroyed . | . . . . . Combat | -11 -10 -10 -10 -9 -------- Run | Yrd Mat Min Exi Min Hostile Shots Fired 107 | . 47 40 . 20 Missed 26 | . 16 6 . 4 Damage Taken 1211 | . 346 556 . 309 Core 257 | . 96 87 . 74 Absorbed by Shields . | . . . . . Ignored by Resistances 44 | . . . . 44 Core Remaining (%) 100 | 100 . . . . Volleys Fired 91 | 1 32 35 . 23 Largest 2 | 2 2 2 . 2 Hottest 95 | 60 60 85 . 95 Shots Fired 146 | 2 64 55 . 25 Gun 134 | 2 64 55 . 13 Cannon . | . . . . . Launcher 12 | . . . . 12 Special . | . . . . . Kinetic 73 | 1 32 40 . . Thermal 31 | 1 6 11 . 13 Explosive 12 | . . . . 12 Electromagnetic 30 | . 26 4 . . Robot Hit Streak 14 | 1 8 14 . 8 Robot Miss Streak 4 | 1 4 2 . 4 Penetration Max . | . . . . . Secondary Targets 2 | . 1 1 . . Max Gunslinging Chain 1 | . 1 1 . . Shots Hit Robots 86 | 1 41 37 . 7 Core Hits 43 | 1 21 9 . 12 Critical Kills . | . . . . . Critical Parts Destroyed 1 | . 1 . . . Critical Strikes 3 | . 2 1 . . Burn 1 | . . 1 . . Destroy 1 | . 1 . . . Corrupt 1 | . 1 . . . Melee Attacks 1 | . 1 . . . Impact . | . . . . . Slashing . | . . . . . Piercing . | . . . . . Sneak Attacks 1 | . 1 . . . Combat Hostiles 1 | . 1 . . . Follow-up Attacks . | . . . . . Damage Inflicted 1462 | 6 496 513 . 447 Guns 995 | 6 496 433 . 60 Cannons . | . . . . . Explosions 467 | . . 80 . 387 Melee . | . . . . . Ramming . | . . . . . Kinetic 501 | 6 229 266 . . Thermal 314 | . 31 223 . 60 Explosive 387 | . . . . 387 Electromagnetic 260 | . 236 24 . . Impact . | . . . . . Slashing . | . . . . . Piercing . | . . . . . Highest Corruption 10 | . . . 10 10 Average Corruption 10 | . . . 10 10 Corruption Purged . | . . . . . Corruption Blocked . | . . . . . Effects 7 | . . . . 7 Message Errors 1 | . . . . 1 Matter Fused 1 | . . . . 1 Heat Flow Errors 1 | . . . . 1 Parts Rejected 1 | . . . . 1 Data Loss (minor) 1 | . . . . 1 Data Loss (major) 2 | . . . . 2 Overload Shots . | . . . . . Overflow Damage 61 | . . 23 . 38 Projectiles . | . . . . . Explosions 61 | . . 23 . 38 Melee . | . . . . . Knockbacks . | . . . . . Impact . | . . . . . Kinetic . | . . . . . Secondary . | . . . . . Self-Inflicted Damage 165 | . . 34 . 131 Shots 6 | . . 1 . 5 Rammed . | . . . . . Targets Rammed . | . . . . . Kicked . | . . . . . Crushed . | . . . . . Highest Temperature 344 | 20 183 168 . 344 Average Temperature 74 | 15 44 34 . 161 Received Heat Transfer 300 | . 90 186 . 24 Effects 1 | . . . . 1 Energy Bleed 1 | . . . . 1 Siege Activations . | . . . . . Robots Corrupted . | . . . . . Combat Hostiles . | . . . . . Parts Fried . | . . . . . Impact Corruptions . | . . . . . Robots Melted . | . . . . . Combat Hostiles . | . . . . . Parts Melted 2 | . . 2 . . Heat Transferred 680 | . 75 457 . 148 Parts Sabotaged . | . . . . . Parts Stolen . | . . . . . Parts Stripped . | . . . . . Power Chain Reactions 1 | . . 1 . . Alert | -11 -10 -10 -10 -9 ------- Run | Yrd Mat Min Exi Min Peak Influence 181 | . 181 84 . 87 Initial 7 | . . 7 . . Average 43 | . 52 49 . 8 Maximum Alert Level . | . . . . . Low Security (%) 100 | 100 100 100 . 100 Level 1 . | . . . . . Level 2 . | . . . . . Level 3 . | . . . . . Level 4 . | . . . . . Level 5 . | . . . . . High Security . | . . . . . Max Security . | . . . . . Squads Dispatched 2 | . 1 1 . . Investigation 1 | . . 1 . . Extermination . | . . . . . Reinforcement 1 | . 1 . . . Assault . | . . . . . Garrison . | . . . . . Intercept . | . . . . . Searches Triggered . | . . . . . Construction Impeded . | . . . . . Haulers Reinforced . | . . . . . Active Scanning Responses . | . . . . . Cargo Convoy Interrupts . | . . . . . Stealth | -11 -10 -10 -10 -9 --------- Run | Yrd Mat Min Exi Min Distress Signals . | . . . . . Communications Jammed . | . . . . . Distress Signals . | . . . . . Times Spotted 27 | . 17 5 . 5 Peak Tracking Total 4 | . 4 3 . 2 Tactical Retreats 1 | . . . . 1 Traps | -11 -10 -10 -10 -9 ------- Run | Yrd Mat Min Exi Min Traps Triggered 2 | . 1 1 . . Indirectly . | . . . . . Trap Hack Attempts . | . . . . . Triggered . | . . . . . Disarmed . | . . . . . Reprogrammed . | . . . . . Reused . | . . . . . Traps Extracted . | . . . . . Installed . | . . . . . Triggered . | . . . . . Most Traps Carried 4 | . . 4 4 4 Machines | -11 -10 -10 -10 -9 ---------- Run | Yrd Mat Min Exi Min Machines Disabled 1 | . 1 . . . Max in Single Turn 1 | . 1 . . . Machines Repaired . | . . . . . Machines Dismantled . | . . . . . Machines Sabotaged . | . . . . . Overloaded Fab Kills . | . . . . . Hacking | -11 -10 -10 -10 -9 --------- Run | Yrd Mat Min Exi Min Machines Accessed 14 | . 9 3 2 . Terminals 8 | . 7 1 . . Fabricators . | . . . . . Repair Stations . | . . . . . Recycling Units 2 | . 2 . . . Scanalyzers . | . . . . . Garrison Access . | . . . . . Total Hacks 23 | . 16 5 2 . Successful 10 | . 5 3 2 . Failed 13 | . 11 2 . . Catastrophic 4 | . 4 . . . Database Lockouts . | . . . . . Manual 12 | . 8 3 1 . Terminals 15 | . 12 3 . . Fabricators . | . . . . . Repair Stations . | . . . . . Recycling Units 4 | . 4 . . . Scanalyzers . | . . . . . Garrison Access . | . . . . . Terminal Hacks 8 | . 3 3 2 . Record 1 | . . . 1 . Prototype ID Bank 3 | . 2 1 . . Open Door 2 | . . 2 . . Hauler Manifests 1 | . 1 . . . Derelict Proto ID Bank 1 | . . . 1 . Fabricator Hacks . | . . . . . Repair Station Hacks . | . . . . . Recycling Unit Hacks 2 | . 2 . . . Retrieve Components 2 | . 2 . . . Scanalyzer . | . . . . . Garrison Access Hacks . | . . . . . Unauthorized Hacks . | . . . . . Terminals . | . . . . . Fabricators . | . . . . . Repair Stations . | . . . . . Recycling Units . | . . . . . Scanalyzers . | . . . . . Garrison Access . | . . . . . Data Cores Recovered . | . . . . . Used . | . . . . . Hacking Detections 8 | . 7 1 . . Full Trace Events . | . . . . . Feedback Events . | . . . . . Feedback Blocked . | . . . . . Robot Schematics Acquired . | . . . . . Robots Built . | . . . . . Authchips . | . . . . . Time . | . . . . . Total Robot Build Rating . | . . . . . Part Schematics Acquired . | . . . . . Parts Built . | . . . . . Authchips . | . . . . . Time . | . . . . . Total Part Build Rating . | . . . . . Parts Repaired . | . . . . . Time . | . . . . . Parts Recycled . | . . . . . Recycled Matter . | . . . . . Retrieved Matter . | . . . . . Retrieved Components 8 | . 8 . . . Parts Scanalyzed . | . . . . . Part Schematics Acquired . | . . . . . Parts Damaged . | . . . . . Bothacking | -11 -10 -10 -10 -9 ------------ Run | Yrd Mat Min Exi Min Used RIF Installer . | . . . . . Robots Hacked . | . . . . . Non-combat . | . . . . . Combat . | . . . . . Robot Hacks Applied . | . . . . . Relay Couplers Released . | . . . . . Fabnet Peak Effective % . | . . . . . Robots Rewired 1 | . 1 . . . Allies Hacked . | . . . . . Hacks Repelled . | . . . . . Allies | -11 -10 -10 -10 -9 -------- Run | Yrd Mat Min Exi Min Total Allies 1 | . 1 . . . Largest Group 1 | . 1 . . . Highest-Rated Group 16 | . 16 . . . Highest-Rated Ally 16 | . 16 . . . Total Orders . | . . . . . Ally Attacks 3 | . 3 . . . Total Damage 29 | . 29 . . . Kills 2 | . 2 . . . Allies Corrupted . | . . . . . Allies Melted . | . . . . . Intel | -11 -10 -10 -10 -9 ------- Run | Yrd Mat Min Exi Min Robot Analysis Total . | . . . . . Derelict Logs Recovered 2 | . . 1 . 1 Drone Launches . | . . . . . Drone Recoveries . | . . . . . Exploration | -11 -10 -10 -10 -9 ------------- Run | Yrd Mat Min Exi Min Turns Passed 2168 | 59 1038 478 343 250 Spaces Moved 1605 | 43 765 319 310 168 Core 12 | 12 . . . . Treads . | . . . . . Legs 519 | 31 488 . . . Wheels 1074 | . 277 319 310 168 Hover . | . . . . . Flight . | . . . . . Fastest Speed 50 | 50 105 105 110 110 Average Speed 112 | 100 114 112 110 110 Slowest Speed 145 | 120 120 145 110 110 Overloaded Moves . | . . . . . Propulsion Burnouts . | . . . . . Robots Hopped . | . . . . . Cave-ins Triggered . | . . . . . Exploration Rate (%) 55 | 3 95 66 63 51 Regions Visited 4 Branch Regions 3 Pre-discovered Areas 1 | . . 1 . . Known Exits Taken . | . . . . . Unknown Exits Taken 4 | 1 1 1 1 . Scrap Searched 2 | . . 1 . 1 Spaces Dug . | . . . . . Terrain Destroyed 47 | . . 4 . 43 Melee . | . . . . . Projectile . | . . . . . AOE 47 | . . 4 . 43 Terrain Rammed . | . . . . . Walls Destroyed . | . . . . . Machines Disabled . | . . . . . Actions | -11 -10 -10 -10 -9 --------- Run | Yrd Mat Min Exi Min Total 1827 | 55 865 386 312 209 Wait 58 | . 38 9 . 11 Move 1601 | 42 764 318 309 168 Hop . | . . . . . Pick Up 34 | 6 11 13 1 3 Fast Attach 5 | 4 1 . . . Attach 14 | 2 . 8 1 3 Detach 1 | . . . 1 . Swap 15 | . 11 3 . 1 Drop 7 | . 7 . . . Fire 91 | 1 32 35 . 23 Melee 1 | . 1 . . . Ram . | . . . . . Kick . | . . . . . Crush . | . . . . . Escape Stasis . | . . . . . Rewire . | . . . . . Trap . | . . . . . Miscellaneous . | . . . . . Route ------- -11/Scrapyard -10/Materials (discovered 5 exits: [*Mat x3] / *Min x2) -10/Mines (discovered 3 exits: [*Mat x2] / *Exi) -10/Exiles -9/Mines History --------- Turn | Location | Event 9 | -11/Scrapyard | Discovered new exit (range 16) 60 | -11/Scrapyard | Entered Materials 317 | -10/Materials | Build established: Mutant 490 | -10/Materials | Discovered new exit (range 12) 490 | -10/Materials | Discovered new exit (range 16) 589 | -10/Materials | Discovered new exit (range 16) 779 | -10/Materials | Discovered new exit (range 4) 1036 | -10/Materials | Discovered new exit (range 4) 1098 | -10/Materials | Entered Mines 1169 | -10/Mines | Met a Derelict shopkeep closing up shop 1202 | -10/Mines | Discovered new exit (range 11) 1332 | -10/Mines | Core integrity fell below 50% 1393 | -10/Mines | Discovered new exit (range 6) 1400 | -10/Mines | Lost 3 parts (1p1n1w) 1416 | -10/Mines | Met a Derelict who couldn't figure out how to use a Trap Extractor 1450 | -10/Mines | Lost 4 parts (1p1n1u1w) 1546 | -10/Mines | Learned location of Storage (-8) 1557 | -10/Mines | Found a hidden stash of uninstalled traps 1570 | -10/Mines | Deemed a non-threat by the Exiles lab entrance 1570 | -10/Mines | Discovered new exit (range 5) 1576 | -10/Mines | Entered Exiles 1607 | -10/Exiles | Met 8R-AWN 1627 | -10/Exiles | Met EX-HEX 1659 | -10/Exiles | Met EX-BIN 1685 | -10/Exiles | Aligned with FarCom system 1686 | -10/Exiles | Given EX-Vault access code 1713 | -10/Exiles | Opened EX-Vault 1758 | -10/Exiles | Exiles lab attacked by MAIN.C 1768 | -10/Exiles | Found Latent Energy Streamer 1826 | -10/Exiles | Build established: Scavenger-Mutant 1907 | -10/Exiles | Discovered new exit (range 10) 1917 | -10/Exiles | System corruption reached 10% 1919 | -10/Exiles | Left Exiles lab with Latent Energy Streamer 1919 | -10/Exiles | Entered Mines 1962 | -9/Mines | Learned Materials garrison access intel 1996 | -9/Mines | Received a Rocket Launcher from a helpful Derelict 2078 | -9/Mines | Excavation squad dispatched 2078 | -9/Mines | A large section of the Mines collapsed 2089 | -9/Mines | Core integrity fell below 20% 2169 | -9/Mines | Destroyed self with Rocket Launcher Last Messages --------------- 02101_ as-33558 destroyed. 02105_ Acquired 15 matter. 02118_ Overheating: Energy bleed (-27). 02119_ Particle Gun destroyed. 02119_ Destroyed Particle Gun. 02131_ as-01028 destroyed. 02131_ as-05540 destroyed. 02137_ Acquired 8 matter. 02142_ T-07 Excavator destroyed. 02144_ System corrupted: Substantial component data lost. 02146_ G-34 Mercenary destroyed. 02155_ Acquired 14 matter. 02157_ Acquired Wheel. 02159_ The unstable cave ceiling collapses. 02164_ System corrupted: Heat flow error (+106). 02164_ Grenade Launcher destroyed. 02164_ Destroyed Grenade Launcher. 02166_ T-07 Excavator is excavating. 02167_ T-07 Excavator destroyed. Map ----- +----------------------------------------------------+ | ##???# #??# """ #?????????? | | ##????######### #??# #?????????? | | ##????????????## #??# #?????????? | | #????????????## ##?#### ######?????????? | | ### ##???????????## #????# #??????????????? | | ##?####????????????# """ ###### ########???????? | | #####??????????????# """ #?????? | | ""?????????## """ ?? | | # ###???????????????## ############# ""???? | | # #??????????????????## #????????????????????? | | # #???????????????????### ##????????????????????? | | / #?????????????????????####?????????????????????? | | ###??????????????????????????????????????????????? | | ?????????????????????????????????????????????????? | | ???????###???????????????????????????????????????? | | ??????## ##??????????????????????????????????????? | | ?????## #??????????????????????????????????????? | | ????## #??????????????????????????????????????? | | ##### #??????????????????????????????????????? | | #####?###?????????????????????????????????? | | % # #########??????????????????????????????? | | ### ## #"####??????####???????????????????? | | ??## # ""######### ##??????????????????? | | ???## # # #??????????????????? | | ????## ## ####???????????????? | | #????## # @ #???????????????? | | #?????###" # $## #???????????????? | | #??????##### ! #?????????????????? | | #??????# #" # ##?????????????????? | | ???????# #"# ### g #??????????????????? | | #??????# ##############?# *% ##??????????????????? | | ######?## ##???###?????# !==#???????????????????? | | ## ##?####????????????##!% #???????????????????? | | #??????????????????? *##???????????????????? | | #???????????????????###????????????????????? | | ##??????????????????????????????????????????? | | #???????????????????????????????????????????? | | ##??????????????????????????????????????????? | | ####???????????????????????????????????????? | | ####????????????????????????????????????? | | ##???????????????????????????????????? | | ### #???????????????????????????????????? | | ??## #???????????????????????????????????? | | ???### #???????????????????????????????????? | | ??????## ##???????????????????????????????????? | | ????????#####????????????????????????????????????? | | ?????????????????????????????????????????????????? | | | | | | | +----------------------------------------------------+ Best States ------------- Heat Dissipation 25 Energy Generation 14 Energy Capacity 250 Matter Stores 300 Matter Capacity 300 Sight Range 16 Robot Scan Range 15 Terrain Scan Density 10 Armor Coverage 150 Resistance: KI 20 Evasion (%) 55 Authchip Count 1 Item Schematics ----------------- None Robot Schematics ------------------ None Fabricated ------------ Nothing Alien Tech Used ----------------- None Achievements -------------- None Challenges ------------ None Game ------ Seed RemoteExperimentalAutocannon Manual? 0 Play Time 00:33:56 Cumulative 34.6 hours Start 2024.12.16 @ 23:49:15 End 2024.12.18 @ 20:30:16 Sessions 2 Manual Loads 0 Difficulty Rogue Special Mode None Game No. 20 Rogue 20 Adventurer 0 Explorer 0 Win Type - Total 0 Types 0/0/0/0/0/0/0/0/0 Lore% 14 Gallery% 26 Achievement% 23 Wizard Run 0 Options --------- Layout 1 ASCII 0 Keyboard 0 Movement Mouse Keybinds 0 Fullscreen 1 Font 32/Smallcaps Map View 50x35 Zoom Use 0% Tactical HUD 1 Map Filters NONE Filters NONE Steam 1 RUN: 16a65517-cd38-4b04-b497-c13400fb3ac8